[Event "Titled Tuesday Blitz January 03 Early 2023"]
[White "Zainullina, Nataliya"]
[Black "Goltseva, Ekaterina"]
[WhiteFideId "4145488"]
[BlackFideId "24173770"]
[WhiteElo "2099"]
[BlackElo "2283"]
[Result "1/2-1/2"]
[Round "01"]
[TimeControl "180+2"]
[Date "2023.01.03"]
[WhiteClock "0:00:04"]
[BlackClock "0:00:04"]

1. Nf3 {[%clk 0:02:50]}  d5 {[%clk 0:01:41]} 2. d4 {[%clk 0:02:41]}  Nf6 {[%clk 0:01:39]} 3. c4 {[%clk 0:02:34]}  dxc4 {[%clk 0:01:37]} 4. Qa4+ {[%clk 0:02:31]}  Nbd7 {[%clk 0:01:35]} 5. Qxc4 {[%clk 0:02:31]}  a6 {[%clk 0:01:34]} 6. g3 {[%clk 0:02:28]}  b5 {[%clk 0:01:33]} 7. Qc2 {[%clk 0:02:29]}  Bb7 {[%clk 0:01:33]} 8. Bg2 {[%clk 0:02:29]}  e6 {[%clk 0:01:33]} 9. O-O {[%clk 0:02:30]}  Rc8 {[%clk 0:01:34]} 10. Nbd2 {[%clk 0:02:24]}  c5 {[%clk 0:01:34]} 11. dxc5 {[%clk 0:02:22]}  Bxc5 {[%clk 0:01:32]} 12. Qb1 {[%clk 0:02:22]}  O-O {[%clk 0:01:29]} 13. b4 {[%clk 0:02:21]}  Ba7 {[%clk 0:01:27]} 14. Bb2 {[%clk 0:02:21]}  Qe7 {[%clk 0:01:27]} 15. a3 {[%clk 0:02:21]}  Nd5 {[%clk 0:01:20]} 16. Qd3 {[%clk 0:02:17]}  Rfd8 {[%clk 0:01:15]} 17. Rfc1 {[%clk 0:02:16]}  N7b6 {[%clk 0:01:14]} 18. Qd4 {[%clk 0:02:15]}  f6 {[%clk 0:01:12]} 19. Qg4 {[%clk 0:02:14]}  Na4 {[%clk 0:01:10]} 20. Bd4 {[%clk 0:02:04]}  Bxd4 {[%clk 0:00:55]} 21. Nxd4 {[%clk 0:02:04]}  f5 {[%clk 0:00:49]} 22. Qh4 {[%clk 0:01:54]}  Qxh4 {[%clk 0:00:48]} 23. gxh4 {[%clk 0:01:55]}  Kf7 {[%clk 0:00:47]} 24. N2f3 {[%clk 0:01:52]}  h6 {[%clk 0:00:42]} 25. h5 {[%clk 0:01:49]}  Kf6 {[%clk 0:00:40]} 26. e3 {[%clk 0:01:33]}  e5 {[%clk 0:00:34]} 27. Ne2 {[%clk 0:01:25]}  Ndc3 {[%clk 0:00:32]} 28. Nxc3 {[%clk 0:01:13]}  Nxc3 {[%clk 0:00:33]} 29. Kf1 {[%clk 0:01:12]}  Bd5 {[%clk 0:00:22]} 30. h4 {[%clk 0:01:08]}  Bc4+ {[%clk 0:00:19]} 31. Ke1 {[%clk 0:01:06]}  Ne4 {[%clk 0:00:19]} 32. Bf1 {[%clk 0:01:03]}  Rd6 {[%clk 0:00:14]} 33. Bxc4 {[%clk 0:01:02]}  bxc4 {[%clk 0:00:14]} 34. Rc2 {[%clk 0:01:01]}  c3 {[%clk 0:00:14]} 35. Rac1 {[%clk 0:01:01]}  Rdc6 {[%clk 0:00:14]} 36. Ke2 {[%clk 0:01:00]}  Nd6 {[%clk 0:00:13]} 37. Ne1 {[%clk 0:00:58]}  Nb5 {[%clk 0:00:13]} 38. Ra2 {[%clk 0:00:55]}  e4 {[%clk 0:00:12]} 39. Nc2 {[%clk 0:00:52]}  Rc4 {[%clk 0:00:13]} 40. a4 {[%clk 0:00:51]}  Nd6 {[%clk 0:00:12]} 41. Rb1 {[%clk 0:00:46]}  Ke5 {[%clk 0:00:12]} 42. b5 {[%clk 0:00:45]}  axb5 {[%clk 0:00:13]} 43. axb5 {[%clk 0:00:45]}  Rb8 {[%clk 0:00:09]} 44. Nd4 {[%clk 0:00:44]}  Kd5 {[%clk 0:00:06]} 45. Rd1 {[%clk 0:00:40]}  Kc5 {[%clk 0:00:05]} 46. Ne6+ {[%clk 0:00:38]}  Kxb5 {[%clk 0:00:03]} 47. Rb1+ {[%clk 0:00:30]}  Rb4 {[%clk 0:00:03]} 48. Nd4+ {[%clk 0:00:23]}  Kc4 {[%clk 0:00:03]} 49. Rc1 {[%clk 0:00:16]}  f4 {[%clk 0:00:04]} 50. Nc6 {[%clk 0:00:14]}  Rb2+ {[%clk 0:00:04]} 51. Rxb2 {[%clk 0:00:14]}  Rxb2+ {[%clk 0:00:05]} 52. Ke1 {[%clk 0:00:13]}  f3 {[%clk 0:00:05]} 53. Ne5+ {[%clk 0:00:13]}  Kb3 {[%clk 0:00:06]} 54. Nc6 {[%clk 0:00:10]}  Nc4 {[%clk 0:00:06]} 55. Nd4+ {[%clk 0:00:10]}  Kb4 {[%clk 0:00:07]} 56. Nc6+ {[%clk 0:00:08]}  Kb3 {[%clk 0:00:07]} 57. Nd4+ {[%clk 0:00:09]}  Kb4 {[%clk 0:00:08]} 58. Nc6+ {[%clk 0:00:08]}  Kc5 {[%clk 0:00:08]} 59. Nd4 {[%clk 0:00:07]}  Kd5 {[%clk 0:00:03]} 60. Nc2 {[%clk 0:00:04]}  Ra2 {[%clk 0:00:03]} 61. Nd4 {[%clk 0:00:04]}  Rb2 {[%clk 0:00:03]} 62. Kd1 {[%clk 0:00:04]}  Kc5 {[%clk 0:00:03]} 63. Ke1 {[%clk 0:00:04]}  Kd5 {[%clk 0:00:04]} 1/2-1/2


[Site "https://www.chess.com"]

[Event "Titled Tuesday Blitz January 03 Early 2023"]
[White "Suduvasachmatai"]
[Black "Defend1r"]
[WhiteElo "2107"]
[BlackElo "2539"]
[Result "0-1"]
[Round "01"]
[TimeControl "180+2"]
[Date "2023.01.03"]
[WhiteClock "0:00:02"]
[BlackClock "0:00:28"]

1. e4 {[%clk 0:02:58]}  c5 {[%clk 0:02:47]} 2. c3 {[%clk 0:02:56]}  d5 {[%clk 0:02:42]} 3. exd5 {[%clk 0:02:56]}  Qxd5 {[%clk 0:02:43]} 4. d4 {[%clk 0:02:56]}  Nc6 {[%clk 0:02:41]} 5. Nf3 {[%clk 0:02:56]}  cxd4 {[%clk 0:02:40]} 6. cxd4 {[%clk 0:02:56]}  e5 {[%clk 0:02:40]} 7. Nc3 {[%clk 0:02:52]}  Bb4 {[%clk 0:02:39]} 8. Bd2 {[%clk 0:02:49]}  Bxc3 {[%clk 0:02:38]} 9. Bxc3 {[%clk 0:02:50]}  e4 {[%clk 0:02:38]} 10. Ne5 {[%clk 0:02:39]}  Nxe5 {[%clk 0:02:38]} 11. dxe5 {[%clk 0:02:37]}  Ne7 {[%clk 0:02:38]} 12. Qxd5 {[%clk 0:02:14]}  Nxd5 {[%clk 0:02:39]} 13. Bb5+ {[%clk 0:02:13]}  Bd7 {[%clk 0:02:39]} 14. Bxd7+ {[%clk 0:02:12]}  Kxd7 {[%clk 0:02:40]} 15. O-O-O {[%clk 0:02:13]}  Ke6 {[%clk 0:02:40]} 16. Bd4 {[%clk 0:02:09]}  b6 {[%clk 0:02:39]} 17. Rhe1 {[%clk 0:02:08]}  Rac8+ {[%clk 0:02:22]} 18. Kb1 {[%clk 0:02:07]}  Kf5 {[%clk 0:02:21]} 19. f3 {[%clk 0:01:44]}  exf3 {[%clk 0:02:21]} 20. gxf3 {[%clk 0:01:44]}  Rhd8 {[%clk 0:02:21]} 21. Re4 {[%clk 0:01:34]}  Nf4 {[%clk 0:02:11]} 22. Rg1 {[%clk 0:01:26]}  Ne6 {[%clk 0:02:09]} 23. Bc3 {[%clk 0:01:24]}  Rd3 {[%clk 0:02:03]} 24. Rh4 {[%clk 0:01:12]}  h6 {[%clk 0:01:56]} 25. Rf1 {[%clk 0:00:55]}  Nf4 {[%clk 0:01:45]} 26. Kc2 {[%clk 0:00:50]}  Rcd8 {[%clk 0:01:44]} 27. Rg4 {[%clk 0:00:43]}  g5 {[%clk 0:01:43]} 28. h4 {[%clk 0:00:41]}  gxh4 {[%clk 0:01:41]} 29. Rxh4 {[%clk 0:00:41]}  h5 {[%clk 0:01:41]} 30. Rh2 {[%clk 0:00:38]}  b5 {[%clk 0:01:37]} 31. a3 {[%clk 0:00:37]}  R3d5 {[%clk 0:01:29]} 32. Rhh1 {[%clk 0:00:27]}  Rd3 {[%clk 0:01:29]} 33. Rf2 {[%clk 0:00:21]}  R8d5 {[%clk 0:01:26]} 34. Bd2 {[%clk 0:00:14]}  Kxe5 {[%clk 0:01:20]} 35. Bxf4+ {[%clk 0:00:13]}  Kxf4 {[%clk 0:01:21]} 36. Rxh5 {[%clk 0:00:09]}  Rxh5 {[%clk 0:01:04]} 37. Kxd3 {[%clk 0:00:07]}  Kg3 {[%clk 0:01:03]} 38. Rf1 {[%clk 0:00:06]}  Kg2 {[%clk 0:01:03]} 39. Rc1 {[%clk 0:00:05]}  Rf5 {[%clk 0:01:01]} 40. Rc7 {[%clk 0:00:02]}  a5 {[%clk 0:01:00]} 41. Ke4 {[%clk 0:00:03]}  Rxf3 {[%clk 0:01:00]} 42. Rc5 {[%clk 0:00:03]}  Rb3 {[%clk 0:00:56]} 43. Rg5+ {[%clk 0:00:03]}  Kf2 {[%clk 0:00:56]} 44. Rf5+ {[%clk 0:00:04]}  Ke2 {[%clk 0:00:57]} 45. Rxf7 {[%clk 0:00:04]}  Rxb2 {[%clk 0:00:57]} 46. Ra7 {[%clk 0:00:04]}  a4 {[%clk 0:00:53]} 47. Kd4 {[%clk 0:00:04]}  Kd2 {[%clk 0:00:54]} 48. Kc5 {[%clk 0:00:04]}  Kc3 {[%clk 0:00:45]} 49. Rb7 {[%clk 0:00:04]}  Kb3 {[%clk 0:00:45]} 50. Rxb5+ {[%clk 0:00:03]}  Kxa3 {[%clk 0:00:46]} 51. Ra5 {[%clk 0:00:04]}  Rc2+ {[%clk 0:00:46]} 52. Kd4 {[%clk 0:00:04]}  Rc6 {[%clk 0:00:45]} 53. Ra8 {[%clk 0:00:04]}  Kb3 {[%clk 0:00:41]} 54. Kd5 {[%clk 0:00:05]}  Rc7 {[%clk 0:00:40]} 55. Rb8+ {[%clk 0:00:05]}  Ka2 {[%clk 0:00:40]} 56. Ra8 {[%clk 0:00:05]}  a3 {[%clk 0:00:40]} 57. Rb8 {[%clk 0:00:05]}  Ka1 {[%clk 0:00:40]} 58. Kd4 {[%clk 0:00:04]}  Rc2 {[%clk 0:00:39]} 59. Kd3 {[%clk 0:00:03]}  Rb2 {[%clk 0:00:39]} 60. Ra8 {[%clk 0:00:03]}  a2 {[%clk 0:00:39]} 61. Rh8 {[%clk 0:00:02]}  Rb1 {[%clk 0:00:29]} 62. Kc3 {[%clk 0:00:02]}  Rc1+ {[%clk 0:00:29]} 63. Kb3 {[%clk 0:00:02]}  Kb1 {[%clk 0:00:28]} 0-1


[Site "https://www.chess.com"]

[Event "Titled Tuesday Blitz January 03 Early 2023"]
[White "Seemann, Jakub"]
[Black "Gutierrez Anaya, Yeison Joel"]
[WhiteFideId "21874697"]
[BlackFideId "3903273"]
[WhiteElo "2446"]
[BlackElo "2125"]
[Result "1-0"]
[Round "01"]
[TimeControl "180+2"]
[Date "2023.01.03"]
[WhiteClock "0:01:36"]
[BlackClock "0:00:02"]

1. Nf3 {[%clk 0:02:49]}  c5 {[%clk 0:02:45]} 2. e4 {[%clk 0:02:48]}  Nc6 {[%clk 0:02:45]} 3. d4 {[%clk 0:02:45]}  cxd4 {[%clk 0:02:46]} 4. Nxd4 {[%clk 0:02:45]}  Nf6 {[%clk 0:02:47]} 5. Nc3 {[%clk 0:02:44]}  e5 {[%clk 0:02:47]} 6. Ndb5 {[%clk 0:02:43]}  d6 {[%clk 0:02:47]} 7. Bg5 {[%clk 0:02:40]}  a6 {[%clk 0:02:47]} 8. Na3 {[%clk 0:02:39]}  b5 {[%clk 0:02:48]} 9. Nd5 {[%clk 0:02:39]}  Be7 {[%clk 0:02:48]} 10. Bxf6 {[%clk 0:02:38]}  Bxf6 {[%clk 0:02:49]} 11. c3 {[%clk 0:02:38]}  Ne7 {[%clk 0:02:42]} 12. Nxe7 {[%clk 0:02:29]}  Qxe7 {[%clk 0:02:31]} 13. Nc2 {[%clk 0:02:29]}  Bb7 {[%clk 0:02:31]} 14. Qd3 {[%clk 0:02:24]}  Bg5 {[%clk 0:02:27]} 15. Nb4 {[%clk 0:02:23]}  O-O {[%clk 0:02:21]} 16. Be2 {[%clk 0:02:24]}  Qe6 {[%clk 0:02:16]} 17. h4 {[%clk 0:02:21]}  Bh6 {[%clk 0:02:15]} 18. Rd1 {[%clk 0:02:21]}  Rad8 {[%clk 0:02:14]} 19. Nd5 {[%clk 0:02:20]}  f5 {[%clk 0:02:12]} 20. Bf3 {[%clk 0:02:18]}  Kh8 {[%clk 0:01:48]} 21. exf5 {[%clk 0:02:17]}  Qxf5 {[%clk 0:01:44]} 22. Qxf5 {[%clk 0:02:17]}  Rxf5 {[%clk 0:01:45]} 23. Be4 {[%clk 0:02:17]}  Rf7 {[%clk 0:01:43]} 24. g3 {[%clk 0:02:13]}  Bxd5 {[%clk 0:01:24]} 25. Bxd5 {[%clk 0:02:11]}  Rc7 {[%clk 0:01:24]} 26. Ke2 {[%clk 0:02:09]}  b4 {[%clk 0:01:22]} 27. Kd3 {[%clk 0:02:04]}  bxc3 {[%clk 0:01:13]} 28. bxc3 {[%clk 0:02:05]}  Rc5 {[%clk 0:01:05]} 29. c4 {[%clk 0:02:03]}  Ra5 {[%clk 0:01:04]} 30. Ra1 {[%clk 0:01:49]}  Rf8 {[%clk 0:00:37]} 31. Rhf1 {[%clk 0:01:48]}  g5 {[%clk 0:00:36]} 32. hxg5 {[%clk 0:01:47]}  Bxg5 {[%clk 0:00:37]} 33. a4 {[%clk 0:01:47]}  Rb8 {[%clk 0:00:32]} 34. Rab1 {[%clk 0:01:46]}  Rxb1 {[%clk 0:00:30]} 35. Rxb1 {[%clk 0:01:47]}  Rxa4 {[%clk 0:00:30]} 36. Ke4 {[%clk 0:01:46]}  Kg7 {[%clk 0:00:17]} 37. Kf5 {[%clk 0:01:45]}  h6 {[%clk 0:00:12]} 38. Rb7+ {[%clk 0:01:44]}  Kf8 {[%clk 0:00:12]} 39. f4 {[%clk 0:01:42]}  exf4 {[%clk 0:00:08]} 40. gxf4 {[%clk 0:01:42]}  Bh4 {[%clk 0:00:07]} 41. Ke6 {[%clk 0:01:43]}  Ra1 {[%clk 0:00:06]} 42. Kxd6 {[%clk 0:01:39]}  Bg3 {[%clk 0:00:05]} 43. Rf7+ {[%clk 0:01:37]}  Ke8 {[%clk 0:00:06]} 44. Rf5 {[%clk 0:01:37]}  Rf1 {[%clk 0:00:05]} 45. Bc6+ {[%clk 0:01:35]}  Kd8 {[%clk 0:00:02]} 46. Rf8# {[%clk 0:01:36]} 1-0


[Site "https://www.chess.com"]

[Event "Titled Tuesday Blitz January 03 Early 2023"]
[White "Colas, Joshua"]
[Black "Mitrovic, Darko R"]
[WhiteFideId "2044447"]
[BlackFideId "927023"]
[WhiteElo "2342"]
[BlackElo "2220"]
[Result "1-0"]
[Round "01"]
[TimeControl "180+2"]
[Date "2023.01.03"]
[WhiteClock "0:00:41"]
[BlackClock "0:00:01"]

1. Nf3 {[%clk 0:02:17]}  a5 {[%clk 0:01:30]} 2. e4 {[%clk 0:02:14]}  c6 {[%clk 0:01:30]} 3. Nc3 {[%clk 0:02:13]}  b5 {[%clk 0:01:30]} 4. a3 {[%clk 0:02:13]}  Na6 {[%clk 0:01:30]} 5. d4 {[%clk 0:02:13]}  Nc7 {[%clk 0:01:30]} 6. Bf4 {[%clk 0:02:09]}  e6 {[%clk 0:01:25]} 7. Bd3 {[%clk 0:02:01]}  d5 {[%clk 0:01:16]} 8. O-O {[%clk 0:01:59]}  Nf6 {[%clk 0:01:11]} 9. Re1 {[%clk 0:01:57]}  Be7 {[%clk 0:01:09]} 10. Qe2 {[%clk 0:01:33]}  O-O {[%clk 0:01:06]} 11. Bxc7 {[%clk 0:01:27]}  Qxc7 {[%clk 0:01:04]} 12. exd5 {[%clk 0:01:27]}  Nxd5 {[%clk 0:00:59]} 13. Nxd5 {[%clk 0:01:26]}  cxd5 {[%clk 0:00:59]} 14. Bxb5 {[%clk 0:01:26]}  Bf6 {[%clk 0:00:51]} 15. Bd3 {[%clk 0:01:21]}  Rb8 {[%clk 0:00:43]} 16. Rab1 {[%clk 0:01:20]}  Bd7 {[%clk 0:00:38]} 17. b4 {[%clk 0:01:09]}  axb4 {[%clk 0:00:36]} 18. axb4 {[%clk 0:01:10]}  Rfc8 {[%clk 0:00:30]} 19. h3 {[%clk 0:00:58]}  h6 {[%clk 0:00:28]} 20. Ne5 {[%clk 0:00:55]}  Bxe5 {[%clk 0:00:25]} 21. Qxe5 {[%clk 0:00:55]}  Qxe5 {[%clk 0:00:16]} 22. dxe5 {[%clk 0:00:50]}  Bb5 {[%clk 0:00:16]} 23. Rb3 {[%clk 0:00:46]}  Bxd3 {[%clk 0:00:13]} 24. cxd3 {[%clk 0:00:47]}  Rc2 {[%clk 0:00:12]} 25. b5 {[%clk 0:00:47]}  Rb6 {[%clk 0:00:10]} 26. Ra1 {[%clk 0:00:47]}  Kh7 {[%clk 0:00:09]} 27. g4 {[%clk 0:00:39]}  Re2 {[%clk 0:00:07]} 28. Kg2 {[%clk 0:00:39]}  Rxe5 {[%clk 0:00:06]} 29. Ra6 {[%clk 0:00:39]}  Rxa6 {[%clk 0:00:04]} 30. bxa6 {[%clk 0:00:40]}  d4 {[%clk 0:00:03]} 31. Ra3 {[%clk 0:00:39]}  Rd5 {[%clk 0:00:02]} 32. a7 {[%clk 0:00:39]}  Rd8 {[%clk 0:00:03]} 33. a8=Q {[%clk 0:00:40]}  Rxa8 {[%clk 0:00:03]} 34. Rxa8 {[%clk 0:00:40]}  Kg6 {[%clk 0:00:03]} 35. f4 {[%clk 0:00:39]}  Kf6 {[%clk 0:00:02]} 36. Rd8 {[%clk 0:00:38]}  e5 {[%clk 0:00:01]} 37. Rd6+ {[%clk 0:00:39]}  Ke7 {[%clk 0:00:01]} 38. fxe5 {[%clk 0:00:39]}  f6 {[%clk 0:00:01]} 39. Rxd4 {[%clk 0:00:39]}  fxe5 {[%clk 0:00:02]} 40. Ra4 {[%clk 0:00:39]}  Kf6 {[%clk 0:00:02]} 41. Kf3 {[%clk 0:00:40]}  g6 {[%clk 0:00:01]} 42. h4 {[%clk 0:00:41]} 1-0


[Site "https://www.chess.com"]

[Event "Titled Tuesday Blitz January 03 Early 2023"]
[White "Necula, Iulian"]
[Black "Riff, Vincent"]
[WhiteFideId "1232380"]
[BlackFideId "617776"]
[WhiteElo "1851"]
[BlackElo "2383"]
[Result "0-1"]
[Round "01"]
[TimeControl "180+2"]
[Date "2023.01.03"]
[WhiteClock "0:00:01"]
[BlackClock "0:01:52"]

1. d4 {[%clk 0:03:00]}  Nf6 {[%clk 0:02:57]} 2. Nc3 {[%clk 0:03:00]}  d5 {[%clk 0:02:57]} 3. Bf4 {[%clk 0:02:59]}  e6 {[%clk 0:02:55]} 4. e3 {[%clk 0:02:59]}  Bb4 {[%clk 0:02:47]} 5. Ne2 {[%clk 0:02:54]}  O-O {[%clk 0:02:40]} 6. a3 {[%clk 0:02:53]}  Be7 {[%clk 0:02:41]} 7. Ng3 {[%clk 0:02:51]}  a6 {[%clk 0:02:39]} 8. Bd3 {[%clk 0:02:48]}  c5 {[%clk 0:02:39]} 9. dxc5 {[%clk 0:02:46]}  Nbd7 {[%clk 0:02:39]} 10. b4 {[%clk 0:02:12]}  h6 {[%clk 0:02:27]} 11. Nf1 {[%clk 0:01:52]}  e5 {[%clk 0:02:12]} 12. Bg3 {[%clk 0:01:51]}  d4 {[%clk 0:02:10]} 13. Ne4 {[%clk 0:01:39]}  Nxe4 {[%clk 0:02:09]} 14. Bxe4 {[%clk 0:01:39]}  Nf6 {[%clk 0:02:09]} 15. f3 {[%clk 0:01:17]}  Nxe4 {[%clk 0:02:06]} 16. fxe4 {[%clk 0:01:17]}  Bf6 {[%clk 0:02:06]} 17. exd4 {[%clk 0:01:11]}  exd4 {[%clk 0:02:05]} 18. Qd3 {[%clk 0:00:53]}  Bd7 {[%clk 0:01:59]} 19. a4 {[%clk 0:00:41]}  Qe8 {[%clk 0:01:59]} 20. Nd2 {[%clk 0:00:27]}  Bxa4 {[%clk 0:01:58]} 21. O-O {[%clk 0:00:14]}  Bb5 {[%clk 0:01:58]} 22. Qf3 {[%clk 0:00:02]}  Bxf1 {[%clk 0:01:56]} 23. Rxf1 {[%clk 0:00:03]}  Bg5 {[%clk 0:01:56]} 24. Nb3 {[%clk 0:00:03]}  Be3+ {[%clk 0:01:53]} 25. Kh1 {[%clk 0:00:03]}  Qe6 {[%clk 0:01:52]} 26. Re1 {[%clk 0:00:01]}  Qc4 {[%clk 0:01:52]} 0-1


[Site "https://www.chess.com"]

[Event "Titled Tuesday Blitz January 03 Early 2023"]
[White "Vargas, Mauricio"]
[Black "Bodnaruk, Anastasia"]
[WhiteFideId "4404572"]
[BlackFideId "4181751"]
[WhiteElo "2035"]
[BlackElo "2350"]
[Result "0-1"]
[Round "01"]
[TimeControl "180+2"]
[Date "2023.01.03"]
[WhiteClock "0:00:02"]
[BlackClock "0:01:09"]

1. e4 {[%clk 0:02:40]}  c5 {[%clk 0:02:55]} 2. Nc3 {[%clk 0:02:40]}  d6 {[%clk 0:02:54]} 3. f4 {[%clk 0:02:40]}  g6 {[%clk 0:02:53]} 4. Nf3 {[%clk 0:02:41]}  Bg7 {[%clk 0:02:53]} 5. Bb5+ {[%clk 0:02:42]}  Bd7 {[%clk 0:02:52]} 6. Bxd7+ {[%clk 0:02:42]}  Qxd7 {[%clk 0:02:49]} 7. O-O {[%clk 0:02:43]}  Nc6 {[%clk 0:02:47]} 8. d3 {[%clk 0:02:42]}  e6 {[%clk 0:02:36]} 9. Ne2 {[%clk 0:02:38]}  Nge7 {[%clk 0:02:36]} 10. c3 {[%clk 0:02:37]}  O-O {[%clk 0:02:32]} 11. Qe1 {[%clk 0:02:37]}  f5 {[%clk 0:02:29]} 12. Ng5 {[%clk 0:02:32]}  e5 {[%clk 0:02:18]} 13. Qh4 {[%clk 0:02:30]}  h6 {[%clk 0:02:16]} 14. Nf3 {[%clk 0:02:25]}  Kh7 {[%clk 0:01:57]} 15. exf5 {[%clk 0:02:22]}  Nxf5 {[%clk 0:01:56]} 16. Qh3 {[%clk 0:02:22]}  c4 {[%clk 0:01:40]} 17. dxc4 {[%clk 0:02:12]}  Rae8 {[%clk 0:01:28]} 18. g4 {[%clk 0:02:11]}  Nfe7 {[%clk 0:01:26]} 19. fxe5 {[%clk 0:02:05]}  Nxe5 {[%clk 0:01:24]} 20. Nxe5 {[%clk 0:00:55]}  Rxf1+ {[%clk 0:01:23]} 21. Kxf1 {[%clk 0:00:52]}  dxe5 {[%clk 0:01:22]} 22. Be3 {[%clk 0:00:46]}  Qd3 {[%clk 0:01:19]} 23. Ke1 {[%clk 0:00:26]}  Rf8 {[%clk 0:01:14]} 24. Rd1 {[%clk 0:00:22]}  Qe4 {[%clk 0:01:15]} 25. Qg3 {[%clk 0:00:17]}  Rf3 {[%clk 0:01:11]} 26. Qh4 {[%clk 0:00:10]}  Rxe3 {[%clk 0:01:09]} 27. Kd2 {[%clk 0:00:01]}  Rxe2+ {[%clk 0:01:09]} 28. Kc1 {[%clk 0:00:02]}  Qc2# {[%clk 0:01:09]} 0-1


[Site "https://www.chess.com"]

[Event "Titled Tuesday Blitz January 03 Early 2023"]
[White "Butolo, Alexandru-Mircea"]
[Black "Mendez Fortes, Eduardo Jesus"]
[WhiteFideId "1261649"]
[BlackFideId "3502376"]
[WhiteElo "2033"]
[BlackElo "2250"]
[Result "0-1"]
[Round "01"]
[TimeControl "180+2"]
[Date "2023.01.03"]
[WhiteClock "0:00:01"]
[BlackClock "0:01:09"]

1. d4 {[%clk 0:02:56]}  Nf6 {[%clk 0:02:59]} 2. c4 {[%clk 0:02:55]}  e6 {[%clk 0:02:56]} 3. Nf3 {[%clk 0:02:54]}  d5 {[%clk 0:02:56]} 4. g3 {[%clk 0:02:50]}  dxc4 {[%clk 0:02:55]} 5. Bg2 {[%clk 0:02:48]}  a6 {[%clk 0:02:55]} 6. O-O {[%clk 0:02:44]}  Nc6 {[%clk 0:02:54]} 7. a4 {[%clk 0:02:40]}  Rb8 {[%clk 0:02:53]} 8. Nc3 {[%clk 0:02:11]}  Na5 {[%clk 0:02:52]} 9. Bg5 {[%clk 0:02:02]}  Be7 {[%clk 0:02:50]} 10. e4 {[%clk 0:01:44]}  h6 {[%clk 0:02:46]} 11. Bxf6 {[%clk 0:01:43]}  Bxf6 {[%clk 0:02:47]} 12. e5 {[%clk 0:01:44]}  Be7 {[%clk 0:02:46]} 13. Qe2 {[%clk 0:01:08]}  b6 {[%clk 0:02:41]} 14. Rad1 {[%clk 0:00:41]}  Bb7 {[%clk 0:02:40]} 15. Ne1 {[%clk 0:00:21]}  Bxg2 {[%clk 0:02:36]} 16. Nxg2 {[%clk 0:00:22]}  c6 {[%clk 0:02:36]} 17. f4 {[%clk 0:00:17]}  g6 {[%clk 0:02:36]} 18. Ne4 {[%clk 0:00:14]}  Qc7 {[%clk 0:02:34]} 19. Ne3 {[%clk 0:00:14]}  b5 {[%clk 0:02:31]} 20. axb5 {[%clk 0:00:14]}  cxb5 {[%clk 0:02:29]} 21. d5 {[%clk 0:00:12]}  Bc5 {[%clk 0:02:27]} 22. Kg2 {[%clk 0:00:12]}  Qa7 {[%clk 0:02:22]} 23. Nf6+ {[%clk 0:00:11]}  Kf8 {[%clk 0:02:19]} 24. dxe6 {[%clk 0:00:10]}  Bxe3 {[%clk 0:02:14]} 25. Nd7+ {[%clk 0:00:10]}  Kg7 {[%clk 0:02:11]} 26. Nxb8 {[%clk 0:00:09]}  Rxb8 {[%clk 0:02:11]} 27. Rd7 {[%clk 0:00:09]}  Rb7 {[%clk 0:02:10]} 28. Rfd1 {[%clk 0:00:08]}  Bc5 {[%clk 0:02:07]} 29. Rxb7 {[%clk 0:00:08]}  Qxb7+ {[%clk 0:02:08]} 30. Kh3 {[%clk 0:00:05]}  fxe6 {[%clk 0:02:06]} 31. Qd2 {[%clk 0:00:04]}  Nc6 {[%clk 0:01:11]} 32. Qd7+ {[%clk 0:00:03]}  Qxd7 {[%clk 0:01:12]} 33. Rxd7+ {[%clk 0:00:04]}  Ne7 {[%clk 0:01:12]} 34. Rc7 {[%clk 0:00:03]}  Bb4 {[%clk 0:01:12]} 35. Ra7 {[%clk 0:00:03]}  a5 {[%clk 0:01:12]} 36. Rb7 {[%clk 0:00:03]}  a4 {[%clk 0:01:13]} 37. Rxb5 {[%clk 0:00:03]}  Nd5 {[%clk 0:01:10]} 38. Rb7+ {[%clk 0:00:02]}  Kf8 {[%clk 0:01:10]} 39. Rh7 {[%clk 0:00:02]}  a3 {[%clk 0:01:08]} 40. bxa3 {[%clk 0:00:01]}  Bxa3 {[%clk 0:01:09]} 0-1


[Site "https://www.chess.com"]

[Event "Titled Tuesday Blitz January 03 Early 2023"]
[White "Nakamura, Hikaru"]
[Black "Matinian, Nikita"]
[WhiteFideId "2016192"]
[BlackFideId "24129100"]
[WhiteElo "2775"]
[BlackElo "2407"]
[Result "1-0"]
[Round "02"]
[TimeControl "180+2"]
[Date "2023.01.03"]
[WhiteClock "0:02:11"]
[BlackClock "0:01:30"]

1. g3 {[%clk 0:03:00]}  e5 {[%clk 0:02:59]} 2. Bg2 {[%clk 0:03:00]}  g6 {[%clk 0:02:59]} 3. c4 {[%clk 0:02:59]}  Bg7 {[%clk 0:03:00]} 4. Nc3 {[%clk 0:03:00]}  Nc6 {[%clk 0:03:00]} 5. e3 {[%clk 0:03:00]}  h5 {[%clk 0:02:59]} 6. h3 {[%clk 0:02:58]}  d6 {[%clk 0:02:58]} 7. Nge2 {[%clk 0:02:57]}  h4 {[%clk 0:02:58]} 8. g4 {[%clk 0:02:58]}  f5 {[%clk 0:02:57]} 9. gxf5 {[%clk 0:02:56]}  Bxf5 {[%clk 0:02:55]} 10. d3 {[%clk 0:02:57]}  Qd7 {[%clk 0:02:53]} 11. a3 {[%clk 0:02:44]}  Nge7 {[%clk 0:02:36]} 12. b4 {[%clk 0:02:44]}  O-O {[%clk 0:02:13]} 13. e4 {[%clk 0:02:37]}  Be6 {[%clk 0:02:11]} 14. Bg5 {[%clk 0:02:37]}  Bf6 {[%clk 0:02:12]} 15. Qd2 {[%clk 0:02:35]}  Nd4 {[%clk 0:02:09]} 16. Nxd4 {[%clk 0:02:29]}  exd4 {[%clk 0:02:10]} 17. Ne2 {[%clk 0:02:30]}  Nc6 {[%clk 0:02:04]} 18. Bxf6 {[%clk 0:02:29]}  Rxf6 {[%clk 0:02:04]} 19. Qg5 {[%clk 0:02:28]}  Raf8 {[%clk 0:02:04]} 20. f4 {[%clk 0:02:28]}  Qg7 {[%clk 0:01:57]} 21. Rg1 {[%clk 0:02:21]}  Bxc4 {[%clk 0:01:56]} 22. dxc4 {[%clk 0:02:17]}  d3 {[%clk 0:01:56]} 23. e5 {[%clk 0:02:17]}  dxe5 {[%clk 0:01:52]} 24. Bd5+ {[%clk 0:02:17]}  Kh7 {[%clk 0:01:49]} 25. Rg4 {[%clk 0:02:13]}  Rxf4 {[%clk 0:01:30]} 26. Nxf4 {[%clk 0:02:13]}  Rxf4 {[%clk 0:01:29]} 27. Rxf4 {[%clk 0:02:11]}  exf4 {[%clk 0:01:30]} 28. Qxh4+ {[%clk 0:02:11]} 1-0


[Site "https://www.chess.com"]